bitfinex/quotes_SOLUSD_20240906
["timestamp","ask_amount","ask_price","bid_price","bid_amount"]
[1725588609019,0.55688562,130.89,130.84,26.7496]
[1725588609524,45.55688562,130.89,130.84,26.7496]
[1725588610040,0.55688562,130.89,130.86,7.6415]
[1725588610246,20.55688562,130.9,130.86,7.6415]
[1725588610425,0.55688562,130.91,130.87,7.641]
[1725588610735,65.55688562,130.91,130.87,7.641]
[1725588610940,20.55688562,130.91,130.87,7.641]
[1725588611639,0.55688562,130.91,130.82,38.2199]
[1725588611843,0.55688562,130.91,130.86,7.6412]
[1725588612035,45.55688562,130.91,130.86,7.6412]
[1725588612254,45.55688562,130.91,130.82,38.2199]
[1725588612546,27.6396,130.9,130.84,26.7485]
[1725588612852,45.55688562,130.89,130.84,26.7485]
[1725588613138,27.6396,130.9,130.86,7.6415]
[1725588613139,20.0,130.9,130.86,7.6415]
[1725588613526,0.55688562,130.89,130.85,7.6421]
[1725588613745,45.55688562,130.89,130.85,7.6421]
[1725588613924,53.19698562,130.89,130.84,26.7489]
[1725588614319,7.6406,130.88,130.84,19.1061]
[1725588614620,0.55688562,130.87,130.84,19.1061]
[1725588614841,0.55688562,130.88,130.84,26.7485]
[1725588616327,22.3929,130.92,130.86,19.1034]
[1725588616529,0.55688562,130.91,130.86,19.1034]
[1725588616729,7.6399,130.9,130.85,7.6422]
[1725588617028,8.19688562,130.89,130.84,7.6428]
[1725588617820,0.55688562,130.88,130.85,7.6422]
[1725588618023,20.55688562,130.89,130.85,7.6422]
[1725588618241,45.0,130.88,130.85,7.6422]
[1725588618443,0.55688562,130.87,130.84,7.6428]
[1725588619145,45.0,130.88,130.85,7.6421]
[1725588619348,30.0317,130.92,130.85,19.1049]
[1725588619553,20.55688562,130.91,130.87,7.6411]
[1725588620251,20.55688562,130.91,130.88,7.6403]
[1725588620631,20.55688562,130.91,130.87,7.641]
[1725588621045,28.19578562,130.91,130.87,7.641]
[1725588621355,28.19578562,130.91,130.85,19.1049]
[1725588621356,28.19578562,130.91,130.86,7.6416]
[1725588621557,7.6396,130.9,130.85,19.1049]
[1725588621730,45.55688562,130.89,130.85,26.7471]
[1725588622130,0.55688562,130.89,130.86,7.6416]
[1725588622330,45.55688562,130.89,130.86,7.6416]
[1725588622541,0.55688562,130.9,130.87,7.6411]
[1725588622960,45.55688562,130.9,130.87,7.6411]
[1725588623655,45.55688562,130.9,130.86,7.6416]
[1725588624231,0.55688562,130.9,130.87,7.641]
[1725588624553,20.55688562,130.91,130.87,7.641]
[1725588625127,20.55688562,130.91,130.82,38.2199]
[1725588625447,20.55688562,130.91,130.88,7.6401]
[1725588625845,20.55688562,130.91,130.87,26.7429]
[1725588625846,28.19588562,130.91,130.87,26.7429]
[1725588626540,20.55688562,130.91,130.88,7.6405]
[1725588627757,0.55688562,130.91,130.88,7.6405]
[1725588627944,0.55688562,130.91,130.89,7.6398]
[1725588628140,42.94978562,130.92,130.89,7.6398]
[1725588628338,20.0,130.91,130.88,7.6405]
[1725588629157,20.55688562,130.91,130.88,7.6405]
[1725588629555,15.0473,130.96,130.9,19.0985]
[1725588629760,0.55688562,130.95,130.87,38.2035]
[1725588629933,0.55688562,130.95,130.92,19.0949]
[1725588630334,15.0473,130.96,130.92,19.0949]
[1725588630648,15.60418562,130.96,130.95,7.6365]
[1725588630839,15.0473,130.96,130.94,7.6369]
[1725588631044,15.60418562,130.96,130.94,7.6369]
[1725588631450,29.0782,131.04,130.94,19.0917]
[1725588631451,15.0473,131.0,130.94,19.0917]
[1725588631644,15.0473,131.0,130.95,7.6363]
[1725588631645,0.55688562,130.99,130.95,7.6363]
[1725588631839,7.6352,130.98,130.94,19.0917]
[1725588632068,0.55688562,130.97,130.94,19.0917]
[1725588632448,8.19228562,130.97,130.91,19.0968]
[1725588632643,0.55688562,130.97,130.91,19.0968]
[1725588633258,20.55688562,130.97,130.91,19.0968]
[1725588633435,45.0,130.96,130.91,19.0968]
[1725588633761,20.55688562,130.95,130.92,7.638]
[1725588636766,7.6346,130.99,130.91,19.0968]
[1725588636973,0.55688562,130.98,130.91,19.0968]
[1725588637274,0.55688562,130.98,130.88,28.60311936]
[1725588637275,0.55688562,130.98,130.95,7.6363]
[1725588637455,20.55688562,130.98,130.95,7.6363]
[1725588638265,20.55688562,130.97,130.94,7.6369]
[1725588638481,0.55688562,130.97,130.94,7.6369]
[1725588639071,0.55688562,130.98,130.94,7.6369]
[1725588639258,53.19168562,130.98,130.94,7.6369]
[1725588639455,20.0,130.97,130.93,26.7308]
[1725588639764,20.0,130.97,130.93,19.0933]
[1725588640167,20.55688562,130.99,130.95,7.6365]
[1725588640752,20.55688562,130.99,130.96,7.6358]
[1725588641865,20.0,130.99,130.95,19.0902]
[1725588642066,0.55688562,130.98,130.96,7.6353]
[1725588642876,20.55688562,131.0,130.95,19.0902]
[1725588643167,20.0,131.0,130.95,19.0902]
[1725588643352,20.55688562,131.01,130.95,19.0902]
[1725588643668,20.55688562,131.01,130.98,7.6347]
[1725588643860,0.55688562,131.01,130.98,7.6347]
[1725588644676,7.6336,131.0,130.95,7.6363]
[1725588644850,0.55688562,130.99,130.96,7.6356]
[1725588645054,0.55688562,130.99,130.94,19.0918]
[1725588645370,16.0297,130.98,130.95,7.6361]
[1725588645748,0.55688562,130.97,130.95,7.6361]
[1725588645960,0.55688562,130.97,130.94,26.7287]
[1725588646475,0.55688562,130.97,130.9,24.66530596]
[1725588646684,7.6361,130.96,130.91,7.6386]
[1725588646972,20.55688562,130.95,130.91,7.6386]
[1725588647152,20.55688562,130.95,130.9,19.0979]
[1725588647153,20.55688562,130.95,130.92,7.6381]
[1725588647356,16.0297,130.98,130.92,19.0948]
[1725588647661,20.0,130.97,130.94,7.6369]
[1725588647966,20.55688562,130.97,130.94,7.6369]
[1725588648357,20.55688562,130.97,130.93,7.6376]
[1725588648756,20.55688562,130.97,130.92,19.0948]
[1725588648757,52.636,130.96,130.92,19.0948]
[1725588648961,7.6371,130.94,130.89,19.0994]
[1725588649171,0.55688562,130.93,130.89,19.0994]
[1725588649375,8.19338562,130.95,130.89,19.0994]
[1725588649568,20.0,130.94,130.91,7.6387]
[1725588649878,20.0,130.94,130.89,19.0994]
[1725588650089,20.55688562,130.95,130.89,19.0994]
[1725588650562,20.0,130.95,130.91,19.096]
[1725588650764,0.55688562,130.97,130.91,38.1926]
[1725588650967,16.0297,130.98,130.96,7.6359]
[1725588651169,16.58658562,130.98,130.95,7.6364]
[1725588651374,16.0297,130.98,130.96,7.6358]
[1725588651581,23.6627,131.01,130.96,7.6358]
[1725588651785,0.55688562,131.0,130.96,7.6358]
[1725588652264,0.55688562,131.0,130.94,19.0926]
[1725588652867,0.55688562,131.0,130.96,7.6354]
[1725588653062,20.55688562,131.0,130.96,7.6354]
[1725588654194,28.19048562,131.0,130.96,7.6354]
[1725588655561,45.0,130.99,130.95,7.6364]
[1725588655786,0.55688562,130.98,130.95,7.6364]
[1725588656783,0.55688562,130.99,130.96,7.6359]
[1725588658089,20.55688562,131.0,130.96,7.6359]
[1725588658584,20.55688562,131.0,130.97,7.6352]
[1725588658891,20.55688562,131.02,130.99,7.6339]
[1725588659587,0.55688562,131.01,130.98,26.7208]
[1725588659965,28.18938562,131.02,130.98,26.7208]
[1725588660172,0.55688562,131.01,130.98,26.7208]
[1725588660371,0.55688562,131.02,130.99,7.6338]
[1725588660593,7.6305,131.06,131.01,7.633]
[1725588660777,0.55688562,131.05,131.0,19.0832]
[1725588661091,0.55688562,131.05,130.97,19.0882]
[1725588661092,7.6328,131.02,130.97,19.0882]
[1725588661273,0.55688562,131.01,130.98,7.6347]
[1725588661476,0.55688562,131.02,130.98,7.6347]
[1725588662082,8.18928562,131.02,130.98,7.6347]
[1725588662284,45.0,131.01,130.94,19.092]
[1725588662599,0.55688562,131.0,130.94,19.092]
[1725588662804,8.19048562,131.0,130.95,7.636]
[1725588662973,0.55688562,131.0,130.94,19.092]
[1725588663290,0.55688562,131.0,130.96,7.6354]
[1725588663504,16.2574,131.02,130.94,28.60311936]
[1725588663684,23.8881,131.05,131.0,7.633]
[1725588663883,0.55688562,131.04,131.0,7.633]
[1725588664666,0.55688562,131.04,130.99,19.0854]
[1725588664887,7.6325,131.02,130.98,7.6347]
[1725588665082,8.18858562,131.04,130.98,7.6347]
[1725588665311,27.6319,131.03,130.98,7.6347]
[1725588665488,27.6319,131.03,130.97,26.7221]
[1725588665489,53.18928562,131.02,130.97,26.7221]
[1725588665688,0.55688562,131.01,130.97,26.7221]
[1725588666909,0.55688562,131.01,130.96,7.6358]
[1725588667214,7.6335,131.0,130.95,7.6364]
[1725588667400,45.55688562,130.99,130.95,7.6364]
[1725588667719,0.55688562,130.98,130.95,7.6364]
[1725588667897,0.55688562,130.98,130.91,19.0968]
[1725588668094,20.55688562,130.98,130.91,19.0968]
[1725588668307,45.0,130.97,130.91,19.0968]
[1725588668606,20.55688562,130.96,130.91,19.0968]
[1725588668812,45.55688562,130.95,130.91,26.7351]
[1725588670095,7.6378,130.93,130.88,26.7411]
[1725588670301,0.55688562,130.92,130.88,19.101]
[1725588670718,24.45268562,130.92,130.88,19.101]
[1725588671091,24.45268562,130.92,130.88,26.7415]
[1725588671820,0.55688562,130.94,130.9,19.0976]
[1725588671993,20.55688562,130.94,130.9,19.0976]
[1725588672196,20.55688562,130.94,130.9,26.7368]
[1725588672795,28.19398562,130.94,130.9,19.0976]
[1725588673302,20.55688562,130.94,130.9,26.7369]
[1725588673700,28.19398562,130.94,130.9,26.7369]
[1725588674105,28.19398562,130.94,130.9,26.7368]
[1725588674308,0.55688562,130.94,130.9,26.7368]
[1725588675297,20.55688562,130.94,130.9,26.7368]
[1725588675823,20.55688562,130.94,130.91,7.6387]
[1725588676418,16.2574,130.95,130.92,19.0945]
[1725588676594,23.8922,130.98,130.92,19.0945]
[1725588676798,28.19248562,130.97,130.92,19.0945]
[1725588677026,7.636,130.96,130.92,19.0945]
[1725588677328,20.55688562,130.95,130.92,19.0945]
[1725588677505,20.55688562,130.95,130.9,7.6393]
[1725588677904,8.19338562,130.95,130.9,7.6393]
[1725588678110,20.0,130.94,130.92,7.6378]
[1725588678412,20.0,130.94,130.92,7.6381]
[1725588678610,20.55688562,130.95,130.92,7.6381]
[1725588678814,0.55688562,130.95,130.92,7.6381]
[1725588681207,16.81428562,130.98,130.97,7.6353]
[1725588681422,6.1874,130.99,130.95,26.7264]
[1725588682328,6.1874,130.99,130.96,7.6359]
[1725588682632,0.55688562,130.98,130.96,7.6359]
[1725588683219,0.55688562,131.0,130.96,7.6359]
[1725588683405,20.55688562,131.0,130.96,7.6359]
[1725588684524,16.2574,131.01,130.97,19.087]
[1725588684828,16.26418562,131.05,130.97,66.77911936]
[1725588685207,0.55688562,131.04,131.01,19.0813]
[1725588685423,15.7073,131.05,131.01,19.0813]
[1725588685622,15.7073,131.05,131.03,7.6317]
[1725588685933,0.55688562,131.06,131.03,7.6317]
[1725588686231,20.55688562,131.06,131.01,19.0813]
[1725588686608,20.0,131.06,131.03,7.6316]
[1725588687226,6.66518562,131.07,131.03,7.6316]
[1725588687733,0.55688562,131.06,131.02,7.6323]
[1725588687932,8.18698562,131.06,131.01,26.7142]
[1725588688434,45.0,131.05,131.01,26.7142]
[1725588688726,45.55688562,131.05,131.01,26.7142]
[1725588688929,6.1083,131.07,131.02,7.6321]
[1725588689143,20.55688562,131.06,131.02,7.6321]
[1725588689310,20.55688562,131.06,131.01,26.7142]
[1725588689632,7.6308,131.05,130.99,7.6336]
[1725588689803,7.6308,131.05,131.0,7.6334]
[1725588689804,0.55688562,131.04,131.0,7.6334]
[1725588690008,20.55688562,131.04,131.0,7.6334]
[1725588690609,0.55688562,131.04,131.0,7.6334]
[1725588690813,45.55688562,131.04,131.0,7.6334]
[1725588691331,53.18818562,131.04,130.98,26.721]
[1725588691538,53.18818562,131.04,130.99,7.634]
[1725588691917,13.7379,131.07,131.02,7.6321]
[1725588692130,0.55688562,131.06,131.02,7.6321]
[1725588693232,0.55688562,131.06,131.0,19.0826]
[1725588693233,0.55688562,131.06,131.03,7.6318]
[1725588693424,20.55688562,131.06,131.03,7.6318]
[1725588694232,20.55688562,131.06,131.02,7.6322]
[1725588695248,0.55688562,131.07,131.04,7.6311]
[1725588695445,0.55688562,131.08,131.04,7.6311]
[1725588695932,0.55688562,131.08,131.02,19.08]
[1725588695933,28.18618562,131.08,131.03,7.6318]
[1725588696133,0.55688562,131.07,131.03,7.6318]
[1725588696735,45.55688562,131.07,131.03,7.6318]
[1725588697731,53.18638562,131.07,131.03,7.6318]
[1725588698135,20.0,131.06,130.99,19.0848]
[1725588698440,0.55688562,131.05,130.99,19.0848]
[1725588698852,53.18798562,131.05,131.0,7.6334]
[1725588699029,0.55688562,131.04,131.0,7.6334]
[1725588701148,8.18818562,131.04,131.0,7.6334]
[1725588702449,8.18818562,131.04,130.99,19.0848]
[1725588702450,67.7935,131.03,130.99,19.0848]
[1725588702649,0.55688562,131.02,130.99,19.0848]
[1725588702826,0.55688562,131.02,130.99,26.7189]
[1725588703749,15.1615,131.03,131.0,7.6334]
[1725588703936,15.71838562,131.03,131.0,7.6334]
[1725588705837,7.6309,131.05,131.02,19.081]
[1725588705838,0.55688562,131.05,131.02,19.081]
[1725588706450,0.55688562,131.05,131.02,26.7133]
[1725588707453,15.1615,131.06,131.03,7.6316]
[1725588707626,0.55688562,131.06,131.03,7.6316]
[1725588708350,0.55688562,131.06,130.99,19.0847]
[1725588708556,7.6324,131.02,130.95,22.978]
[1725588708857,0.55688562,131.01,130.95,22.978]
[1725588709042,22.00058562,131.07,130.96,66.78021936]
[1725588709225,22.00058562,131.07,131.01,19.0817]
[1725588709226,20.0,131.06,131.01,19.0817]
[1725588709427,15.71838562,131.07,131.01,19.0817]
[1725588710170,15.71838562,131.07,130.98,28.60311936]
[1725588710369,7.1354828,131.1,131.06,7.6298]
[1725588710370,0.55688562,131.09,131.06,7.6298]
[1725588710664,0.55688562,131.09,131.05,7.6306]
[1725588711044,0.55688562,131.09,131.07,7.6293]
[1725588711248,7.69236842,131.1,131.06,19.0751]
[1725588711448,0.8532828,131.1,131.06,19.0751]
[1725588711662,1.41016842,131.1,131.06,19.0751]
[1725588712046,1.41016842,131.1,131.04,7.6307]
[1725588712353,1.41016842,131.1,131.05,7.6304]
[1725588713054,21.41016842,131.1,131.05,7.6304]
[1725588713257,21.41016842,131.1,131.06,7.6295]
[1725588713466,21.41016842,131.1,131.05,19.0761]
[1725588713643,45.0,131.09,131.05,19.0761]
[1725588713839,0.55688562,131.08,131.05,19.0761]
[1725588714342,6.97428562,131.08,131.01,19.0811]
[1725588714657,7.6306,131.06,131.01,19.0811]
[1725588714850,0.55688562,131.05,131.01,19.0811]
[1725588715250,0.55688562,131.07,131.01,19.0811]
[1725588715456,45.55688562,131.07,131.01,19.0811]
[1725588715670,20.0,131.06,131.01,19.0811]
[1725588715870,0.55688562,131.05,131.02,7.6322]
[1725588716651,20.55688562,131.06,131.02,7.6322]
[1725588717950,28.18698562,131.06,131.01,26.7141]
[1725588719874,28.18698562,131.06,131.02,7.6324]
[1725588719875,20.55688562,131.06,131.02,7.6324]
[1725588721251,20.55688562,131.06,131.01,26.7141]
[1725588721559,45.0,131.05,131.01,19.0811]
[1725588721760,0.55688562,131.04,131.01,19.0811]
[1725588722269,0.55688562,131.04,131.01,26.714]
[1725588722470,16.3926,131.05,131.01,19.0811]
[1725588722673,16.3926,131.05,131.02,7.6323]
[1725588724282,16.3926,131.05,131.01,26.7139]
[1725588726380,0.55688562,131.04,131.01,26.7139]
[1725588726780,0.55688562,131.04,131.01,19.0811]
[1725588727281,16.94948562,131.05,131.01,26.714]
[1725588728870,27.6302,131.06,131.02,7.6321]
[1725588730084,0.55688562,131.05,131.02,7.6321]
[1725588731860,0.55688562,131.05,131.01,26.7139]
[1725588732266,8.18758562,131.05,131.01,26.7139]
[1725588732475,0.55688562,131.04,131.01,26.7139]
[1725588733186,0.55688562,131.05,131.01,26.7139]
[1725588734681,0.55688562,131.05,131.02,7.6322]
[1725588737391,0.55688562,131.05,131.01,26.7139]
[1725588737594,45.55688562,131.05,131.01,26.7139]
[1725588737793,0.55688562,131.04,131.01,26.7139]
[1725588740601,7.6322,131.03,130.98,36.28519526]
[1725588740806,53.18948562,131.02,130.99,5.5486107]
[1725588740984,0.55688562,131.01,130.98,19.0864]
[1725588741185,0.55688562,131.01,130.95,19.0907]
[1725588741503,20.55688562,131.01,130.95,9.56746858]
[1725588741806,45.0,131.0,130.94,2.55048674]
[1725588741981,0.55688562,130.99,130.92,19.0952]
[1725588742181,28.19148562,130.99,130.94,7.637]
[1725588742403,45.55688562,130.98,130.94,7.637]
[1725588743886,7.6354,130.97,130.92,26.7328]
[1725588744084,7.6372,130.94,130.89,32.29678643]
[1725588744383,0.55688562,130.93,130.89,19.0994]
[1725588744584,20.55688562,130.95,130.89,19.0994]
[1725588744817,45.0,130.94,130.89,19.0994]
[1725588744982,0.55688562,130.93,130.89,19.0994]
[1725588745174,0.55688562,130.93,130.89,26.7393]
[1725588745375,0.55688562,130.93,130.89,19.0994]
[1725588745602,20.55688562,130.93,130.89,19.0994]
[1725588745805,0.55688562,130.92,130.89,19.0994]
[1725588746385,45.55688562,130.92,130.89,19.0994]
[1725588746585,45.55688562,130.92,130.83,54.2957]
[1725588746793,45.55688562,130.92,130.86,26.7453]
[1725588746794,53.19558562,130.92,130.86,26.7453]
[1725588746996,53.19558562,130.92,130.87,7.641]
[1725588748496,20.0,130.91,130.87,7.641]
[1725588748690,20.0,130.91,130.86,19.1041]
[1725588748691,53.19628562,130.9,130.86,19.1041]
[1725588748894,20.0,130.89,130.86,19.1041]
[1725588749099,45.55688562,130.88,130.85,7.6422]
[1725588749613,45.55688562,130.88,130.84,7.6428]
[1725588749796,45.55688562,130.88,130.83,19.1082]
[1725588749797,45.55688562,130.88,130.85,7.6422]
[1725588753685,14.652193,130.88,130.85,7.6422]
[1725588753880,20.0,130.89,130.85,7.6422]
[1725588756590,27.6401,130.89,130.84,7.6427]
[1725588758910,27.6401,130.89,130.85,7.6422]
[1725588759311,20.0,130.89,130.85,7.6422]
[1725588761297,20.0,130.89,130.83,19.1082]
[1725588761298,52.6406,130.88,130.83,26.7515]
[1725588761508,20.0,130.87,130.83,26.7515]
[1725588762309,27.6412,130.87,130.83,19.1082]
[1725588765896,45.0,130.86,130.78,6.1839]
[1725588766197,16.5672,130.84,130.76,15.8986]
[1725588766596,65.0,130.83,130.76,15.8986]
[1725588767303,72.6435,130.83,130.78,7.6459]
[1725588768011,65.0,130.83,130.79,7.6458]
[1725588768314,65.0,130.83,130.77,19.1165]
[1725588768315,7.6446,130.82,130.77,26.7633]
[1725588768616,20.0,130.81,130.77,26.7633]
[1725588768821,7.6446,130.82,130.77,26.7633]
[1725588769021,20.0,130.81,130.77,26.7633]
[1725588770329,20.0,130.81,130.73,54.1441]
[1725588770330,27.645,130.81,130.75,7.6477]
[1725588770629,52.6454,130.8,130.74,26.7695]
[1725588770827,7.6459,130.79,130.74,19.1209]
[1725588771006,20.0,130.78,130.74,19.1209]
[1725588771206,27.6466,130.78,130.72,7.6493]
[1725588772025,44.2138,130.78,130.72,7.6493]
[1725588772436,52.6471,130.77,130.71,26.7762]
[1725588772617,20.0,130.76,130.71,26.7762]
[1725588773218,27.6478,130.76,130.71,19.1258]
[1725588773528,45.0,130.75,130.71,26.7761]
[1725588773909,20.0,130.76,130.71,26.7761]
[1725588775732,20.0,130.76,130.72,7.6497]
[1725588776031,20.0,130.77,130.72,7.6497]
[1725588776337,45.0,130.76,130.71,26.7763]
[1725588776514,20.0,130.75,130.71,26.7763]
[1725588777626,20.0,130.75,130.72,7.6496]
[1725588777826,16.5672,130.78,130.73,19.1227]
[1725588778135,20.0,130.77,130.74,7.6486]
[1725588778520,24.57875603,130.82,130.75,7.648]
[1725588778837,7.6448,130.81,130.76,7.6474]
[1725588779217,29.3571,130.82,130.77,7.6469]
[1725588779533,29.357,130.82,130.76,7.647]
[1725588779839,15.1033,130.82,130.8,7.6451]
[1725588780013,6.6095,130.85,130.8,26.7578]
[1725588780217,14.2521,130.85,130.8,26.7578]
[1725588780739,7.6429,130.84,130.77,19.1171]
[1725588781114,6.6095,130.85,130.77,19.1171]
[1725588781438,22.7485,130.8,130.74,19.1216]
[1725588781627,20.0,130.79,130.75,7.6481]
[1725588783331,52.6466,130.78,130.72,7.6493]
[1725588783643,27.6472,130.77,130.72,7.6493]
[1725588784012,15.1033,130.8,130.69,61.0042]
[1725588784218,22.749,130.8,130.74,7.6486]
[1725588784419,20.0,130.79,130.74,7.6486]
[1725588784638,27.6463,130.79,130.73,26.7715]
[1725588785650,7.6465,130.78,130.73,26.7715]
[1725588785952,20.0,130.77,130.73,26.7715]
[1725588786651,20.0,130.77,130.73,19.1222]
[1725588786851,20.0,130.79,130.73,19.1222]
[1725588787240,20.0,130.79,130.74,7.6486]
[1725588787533,20.0,130.79,130.75,7.648]
[1725588788262,20.0,130.79,130.76,7.6475]
[1725588788857,29.356,130.84,130.79,7.6458]
[1725588789157,7.6435,130.83,130.78,7.6464]
[1725588789351,21.7128,130.84,130.79,7.6457]
[1725588789530,29.3557,130.84,130.79,7.6457]
[1725588789730,7.6441,130.82,130.77,19.1167]
[1725588789957,21.7128,130.84,130.77,19.1167]
[1725588790259,29.3557,130.84,130.79,7.6456]
[1725588790553,15.1033,130.88,130.8,19.1123]
[1725588790753,7.6422,130.86,130.8,26.7573]
[1725588790967,7.6423,130.85,130.8,26.7573]
[1725588791952,20.0,130.84,130.8,26.7573]
[1725588794238,27.643,130.84,130.8,19.1123]
[1725588794638,20.0,130.84,130.77,19.1172]
[1725588794859,7.6433,130.84,130.79,7.6457]
[1725588795064,20.0,130.83,130.79,7.6457]
[1725588796669,27.6435,130.83,130.78,7.6463]
[1725588797361,27.6435,130.83,130.79,7.6458]
[1725588797543,20.0,130.83,130.79,7.6458]
[1725588798064,20.0,130.83,130.8,7.645]
[1725588798243,20.0,130.84,130.8,7.645]
[1725588798873,20.0,130.84,130.77,19.1172]
[1725588799039,20.0,130.87,130.75,28.67658542]
[1725588799245,7.6399,130.9,130.79,28.67658542]
[1725588799477,15.1033,130.91,130.86,7.6412]
[1725588799763,22.7426,130.91,130.86,7.6417]
[1725588800274,15.1033,130.91,130.86,7.6417]
[1725588800478,7.6394,130.9,130.85,7.6422]
[1725588800653,7.6394,130.9,130.84,26.7496]
[1725588800849,20.0,130.89,130.84,26.7496]
[1725588801961,20.0,130.89,130.85,7.642]
[1725588802168,20.0,130.9,130.85,7.642]
[1725588802551,20.0,130.9,130.84,26.75]
[1725588803044,20.0,130.9,130.84,19.1072]
[1725588803348,7.64,130.89,130.84,26.7499]
[1725588803568,20.0,130.88,130.84,26.7499]
[1725588805573,20.0,130.89,130.84,26.7499]
[1725588806469,20.0,130.89,130.85,7.6422]
[1725588806671,20.0,130.9,130.85,7.6422]
[1725588807270,20.0,130.9,130.86,7.6415]
[1725588808179,27.6394,130.9,130.86,7.6415]
[1725588808474,27.6394,130.9,130.85,7.6422]
[1725588809475,27.6394,130.9,130.84,19.1072]
[1725588809476,7.6401,130.89,130.84,26.75]
[1725588809646,20.0,130.88,130.84,26.75]
[1725588811152,20.0,130.88,130.85,7.6423]
[1725588813955,20.0,130.88,130.86,7.6417]
[1725588814157,20.0,130.89,130.85,7.6422]
[1725588814676,27.6401,130.89,130.84,26.75]
[1725588817294,20.0,130.89,130.85,7.6419]
[1725588817596,16.3048,130.94,130.86,0.44691791]
[1725588818383,23.942,130.94,130.9,7.6392]
[1725588818987,20.0,130.93,130.9,7.6392]
[1725588819189,20.0,130.93,130.89,7.6399]
[1725588819581,7.6382,130.92,130.88,26.7409]
[1725588820188,27.6378,130.93,130.88,26.7409]
[1725588820388,20.0,130.93,130.88,26.7409]
[1725588821306,7.6382,130.92,130.88,26.7409]
[1725588822005,20.0,130.93,130.85,19.1049]
[1725588822299,7.6395,130.9,130.85,26.7467]
[1725588822686,7.6395,130.9,130.86,7.6417]
[1725588823409,7.6395,130.9,130.85,26.7472]
[1725588824395,7.6395,130.9,130.86,7.6416]
[1725588826095,7.6389,130.91,130.86,7.6416]
[1725588826290,20.0,130.9,130.86,7.6416]
[1725588831674,27.6396,130.9,130.86,7.6416]
[1725588834983,20.0,130.9,130.86,7.6416]
[1725588835185,20.0,130.9,130.87,7.6407]
[1725588835484,20.0,130.91,130.87,7.6407]
[1725588835911,7.6406,130.88,130.83,23.2887]
[1725588836210,20.0,130.91,130.85,7.6419]
[1725588836384,7.6395,130.9,130.86,7.6416]
[1725588836582,20.0,130.89,130.86,7.6416]
[1725588837616,20.0,130.89,130.85,7.6421]
[1725588838179,20.0,130.89,130.84,26.7493]
[1725588838411,7.6413,130.87,130.83,15.6456]
[1725588838583,20.0,130.91,130.83,15.6456]
[1725588838789,7.6407,130.88,130.84,7.6428]
[1725588839404,7.6401,130.89,130.84,7.6428]
[1725588839616,27.6406,130.88,130.83,42.3968]
[1725588841612,27.6406,130.88,130.83,26.7512]
[1725588841998,27.6406,130.88,130.84,7.6428]
[1725588842206,20.0,130.88,130.84,7.6428]
[1725588842499,7.6428,130.85,130.8,26.7575]
[1725588842695,45.0,130.87,130.77,34.7886]
[1725588842900,7.6442,130.82,130.78,5.57020892]
[1725588843196,7.6442,130.82,130.77,44.99609194]
[1725588843711,7.6436,130.83,130.77,37.34959194]
[1725588844008,20.0,130.82,130.79,7.6457]
[1725588844489,20.0,130.83,130.79,7.6457]
[1725588844805,15.3627,130.88,130.79,7.6457]
[1725588844806,7.6424,130.85,130.8,7.6446]
[1725588845016,7.6412,130.87,130.79,11.44481713]
[1725588845218,23.0033,130.88,130.83,7.6429]
[1725588845523,7.6406,130.88,130.84,7.6428]
[1725588846119,7.64,130.89,130.85,7.6422]
[1725588847209,7.6377,130.93,130.88,7.6404]
[1725588847393,7.6377,130.93,130.85,11.44481713]
[1725588848011,7.6377,130.93,130.86,5.55635097]
[1725588848214,7.6377,130.93,130.84,15.672]
[1725588848389,7.6377,130.93,130.88,26.7416]